bitfinex/quotes_SOLUSD_20251130
["timestamp","ask_amount","ask_price","bid_price","bid_amount"]
[1764508928414,7.88041291,138.89,138.83,25.21068932]
[1764508928815,0.68,138.88,138.83,7.20305409]
[1764508929222,0.68,138.88,138.82,7.20341171]
[1764508929412,0.68,138.88,138.8,7.20437881]
[1764508930422,3.9,138.88,138.8,7.20437881]
[1764508930641,25.20342766,138.87,138.79,25.21758245]
[1764508930819,25.88342766,138.87,138.79,25.21758245]
[1764508931019,0.68,138.86,138.79,25.21758245]
[1764508931421,0.68,138.86,138.79,25.71758245]
[1764508932845,7.88189692,138.86,138.79,7.20513005]
[1764508933227,0.68,138.85,138.79,7.20513005]
[1764508934234,0.68,138.85,138.78,23.51436222]
[1764508934637,7.20253529,138.84,138.78,86.31436222]
[1764508934952,7.88220245,138.85,138.78,86.31436222]
[1764508935248,25.88724386,138.85,138.77,10.62608425]
[1764508935437,0.68,138.84,138.77,10.62608425]
[1764508935835,0.68,138.84,138.77,29.14150545]
[1764508936939,7.88257145,138.84,138.77,29.14150545]
[1764508937625,0.68,138.83,138.77,29.14150545]
[1764508938740,7.88330352,138.83,138.77,29.14150545]
[1764508938945,0.68,138.86,138.8,16.308864]
[1764508939130,0.68,138.86,138.81,3.22]
[1764508939325,0.68,138.88,138.81,20.028864]
[1764508939533,0.68,138.88,138.83,16.308864]
[1764508940032,0.68,138.88,138.83,0.5]
[1764508940240,0.68,138.88,138.81,20.028864]
[1764508940628,0.68,138.88,138.82,0.5]
[1764508941041,7.88097863,138.88,138.83,7.20305409]
[1764508941240,18.67636817,138.92,138.86,16.308864]
[1764508941456,18.67636817,138.92,138.86,19.528864]
[1764508941752,18.67636817,138.92,138.86,20.028864]
[1764508941753,7.87854535,138.92,138.86,20.028864]
[1764508942843,0.68,138.92,138.86,20.028864]
[1764508943156,7.19780083,138.94,138.87,25.70342766]
[1764508943353,7.86780083,138.94,138.87,25.70342766]
[1764508943543,7.86780083,138.94,138.88,0.5]
[1764508944060,7.86780083,138.94,138.89,7.1999424]
[1764508944352,0.67,138.94,138.89,25.1997984]
[1764508944649,0.67,138.94,138.89,25.6997984]
[1764508945457,0.67,138.94,138.89,28.9197984]
[1764508947061,7.86739248,138.94,138.89,28.9197984]
[1764508947263,0.65,138.93,138.89,28.9197984]
[1764508947455,0.65,138.93,138.89,28.4197984]
[1764508947653,7.19792746,138.93,138.89,7.6999424]
[1764508947851,7.84792746,138.93,138.89,7.1999424]
[1764508948161,0.65,138.92,138.89,7.1999424]
[1764508948456,0.65,138.92,138.88,3.22]
[1764508949339,0.65,138.92,138.88,10.42037009]
[1764508949662,7.84886155,138.92,138.87,7.20085804]
[1764508950156,0.65,138.91,138.84,70.00248862]
[1764508950562,0.65,138.91,138.84,70.50248862]
[1764508950740,0.65,138.91,138.85,0.5]
[1764508950936,0.65,138.91,138.86,3.22]
[1764508951355,0.65,138.91,138.86,3.72]
[1764508951564,7.84907282,138.91,138.86,3.22]
[1764508951956,0.65,138.9,138.86,3.22]
[1764508953142,0.65,138.9,138.86,10.42143004]
[1764508953670,7.84951249,138.9,138.86,3.22]
[1764508954167,0.65,138.89,138.86,3.22]
[1764508956954,0.65,138.89,138.86,10.42146591]
[1764508957765,7.85015492,138.89,138.86,3.22]
[1764508958157,0.65,138.88,138.86,3.22]
[1764508959888,0.65,138.9,138.86,3.22]
[1764508960457,0.65,138.9,138.86,10.42119614]
[1764508961370,7.84956999,138.9,138.86,10.42119614]
[1764508961746,0.65,138.89,138.86,10.42119614]
[1764508963565,25.18891687,138.95,138.86,10.42119614]
[1764508963876,0.65,138.9,138.86,10.42119614]
[1764508964251,4.22148447,138.94,138.86,10.42119614]
[1764508964451,7.19683339,138.95,138.89,16.308864]
[1764508964680,0.65,138.96,138.9,20.028864]
[1764508964894,0.65,138.98,138.9,20.028864]
[1764508965173,0.65,138.98,138.91,0.5]
[1764508965655,0.65,138.98,138.92,25.19435646]
[1764508965855,0.65,138.98,138.93,3.22]
[1764508966060,7.84565818,138.98,138.93,3.22]
[1764508966268,0.65,138.97,138.93,3.22]
[1764508966773,0.65,138.97,138.93,3.72]
[1764508967073,0.65,138.97,138.93,10.91744072]
[1764508967575,0.65,138.97,138.93,10.41744072]
[1764508969255,0.65,138.99,138.94,0.5]
[1764508970158,0.65,139.01,138.94,16.808864]
[1764508970359,0.1,139.02,138.96,16.308864]
[1764508970670,0.1,139.02,138.97,3.22]
[1764508970886,0.1,139.02,138.97,3.72]
[1764508971180,7.94332728,139.02,138.97,10.91562048]
[1764508971676,0.1,139.02,138.98,0.5]
[1764508972753,0.75,139.02,138.98,0.5]
[1764508973056,0.75,139.02,138.98,3.22]
[1764508973275,0.75,139.02,138.98,10.41488516]
[1764508974877,7.94336828,139.02,138.98,10.41488516]
[1764508975067,0.75,139.02,138.98,10.41488516]
[1764508976180,0.1,139.02,138.99,0.5]
[1764508977783,0.1,139.02,139.0,7.1942446]
[1764508978556,0.1,139.02,138.99,0.5]
[1764508978762,0.1,139.02,138.99,7.69457264]
[1764508979078,0.1,139.02,138.99,7.19457264]
[1764508979686,0.78,139.02,138.99,7.19457264]
[1764508980783,0.1,139.02,138.99,7.19457264]
[1764508981286,0.1,139.02,139.0,0.5]
[1764508981587,0.1,139.02,139.01,3.2]
[1764508984098,0.78,139.02,139.0,69.99385214]
[1764508984302,0.78,139.02,138.96,80.79007504]
[1764508984472,0.78,139.02,138.97,10.39579765]
[1764508984877,7.9736441,139.02,138.97,10.39579765]
[1764508985487,0.68,139.01,138.97,10.39579765]
[1764508985869,0.1,139.02,138.98,0.5]
[1764508986080,0.68,139.01,138.97,28.88529178]
[1764508986292,0.68,139.01,138.97,28.38529178]
[1764508986496,0.68,139.01,138.97,10.39579765]
[1764508986671,0.68,139.01,138.95,100.30031398]
[1764508987039,7.1942446,139.0,138.95,91.18780551]
[1764508987491,0.68,138.99,138.95,91.18780551]
[1764508987693,0.68,138.99,138.95,28.38780551]
[1764508987913,0.68,138.99,138.93,23.50623451]
[1764508988195,0.68,138.99,138.85,0.5]
[1764508988196,0.96432314,138.99,138.85,0.5]
[1764508988490,0.96432314,138.99,138.86,3.2]
[1764508988491,8.80994492,138.98,138.86,3.2]
[1764508988700,9.09426806,138.96,138.86,3.2]
[1764508988880,4.31353385,138.95,138.86,3.2]
[1764508989192,25.1907298,138.94,138.86,3.2]
[1764508989368,25.8707298,138.94,138.86,3.2]
[1764508989701,0.68,138.93,138.86,3.2]
[1764508990268,0.68,138.93,138.86,10.40146809]
[1764508990683,0.68,138.93,138.87,0.5]
[1764508991105,7.87799436,138.93,138.88,7.20046082]
[1764508991714,0.68,138.93,138.88,7.70046082]
[1764508991884,0.68,138.93,138.88,7.20046082]
[1764508992078,0.68,138.93,138.88,7.70046082]
[1764508992278,0.68,138.93,138.89,0.5]
[1764508992707,0.68,138.93,138.88,25.20161289]
[1764508993009,7.19838756,138.92,138.86,16.308864]
[1764508993298,7.19838756,138.92,138.86,26.71029301]
[1764508993479,0.68,138.91,138.86,26.71029301]
[1764508993922,0.68,138.91,138.86,3.2]
[1764508994279,0.68,138.91,138.84,7.20250541]
[1764508994483,0.68,138.91,138.84,24.01136941]
[1764508994787,0.68,138.91,138.84,23.51136941]
[1764508995191,7.19942404,138.9,138.84,23.51136941]
[1764508995398,0.68,138.89,138.84,23.51136941]
[1764508995780,0.68,138.89,138.85,0.5]
[1764508995985,0.68,138.89,138.84,23.51136941]
[1764508997194,7.88000536,138.89,138.84,23.51136941]
[1764508997596,0.68,138.88,138.84,23.51136941]
[1764508999613,0.68,138.88,138.84,86.31136941]
[1764508999906,0.68,138.88,138.84,23.51136941]
[1764509001410,0.68,138.89,138.84,42.01770764]
[1764509001614,0.68,138.88,138.84,42.01770764]
[1764509003711,0.68,138.88,138.84,41.51770764]
[1764509003886,0.68,138.88,138.84,25.20884364]
[1764509007908,7.88073181,138.88,138.82,88.01108893]
[1764509008218,7.88073181,138.88,138.82,28.41108893]
[1764509008519,0.72,138.87,138.82,28.41108893]
[1764509009132,7.20119376,138.87,138.82,28.41108893]
[1764509009296,3.2,138.93,138.83,0.5]
[1764509009490,0.1,139.02,138.9,16.308864]
[1764509009693,0.1,139.02,138.91,61.29123912]
[1764509009893,0.1,139.02,139.0,16.308864]
[1764509010494,0.1,139.02,138.99,3.26]
[1764509010495,0.1,139.02,139.01,21.75074667]
[1764509010925,0.1,139.02,139.01,16.28799512]
[1764509010926,1e-08,139.02,139.01,16.28799512]
[1764509011422,0.72,139.12,139.05,8.80994492]
[1764509011618,0.72,139.15,139.08,16.308864]
[1764509011825,25.14548458,139.19,139.08,16.308864]
[1764509012123,4.51006862,139.18,139.08,16.308864]
[1764509012311,0.72,139.17,139.08,16.308864]
[1764509012925,0.72,139.17,139.1,7.1890726]
[1764509013130,7.90554409,139.17,139.1,7.1890726]
[1764509013294,0.72,139.17,139.09,10.44919616]
[1764509013492,0.72,139.17,139.0,9.83789236]
[1764509013493,0.72,139.16,139.0,9.83789236]
[1764509013692,0.72,139.16,138.96,28.91114904]
[1764509013693,3.26,139.15,139.01,3.26]
[1764509013918,1.00432314,139.16,139.02,3.26]
[1764509014125,3.98,139.15,139.03,3.26]
[1764509014493,0.72,139.14,139.03,3.26]
[1764509015101,7.18752246,139.13,139.03,10.45256717]
[1764509015527,0.72,139.12,139.03,10.45256717]
[1764509015832,0.72,139.12,139.05,16.308864]
[1764509017055,0.72,139.12,139.06,7.19114051]
[1764509017204,0.72,139.12,139.07,3.26]
[1764509017623,0.72,139.12,139.07,19.568864]
[1764509018037,0.72,139.12,139.07,3.26]
[1764509018206,7.90804215,139.12,139.04,3.26]
[1764509018405,7.90804215,139.12,139.04,19.568864]
[1764509018715,0.72,139.11,139.04,19.568864]
[1764509018916,7.1890726,139.1,138.96,7.19631548]
[1764509019117,7.1890726,139.1,138.97,7.8958963]
[1764509019349,0.72,139.09,139.0,16.308864]
[1764509019502,0.72,139.11,139.04,16.308864]
[1764509019704,0.72,139.11,139.05,3.26]
[1764509021145,0.72,139.11,139.06,7.19114051]
[1764509022443,0.72,139.13,139.06,7.19114051]
[1764509022941,0.72,139.13,139.06,25.16899179]
[1764509023102,0.72,139.13,139.07,16.308864]
[1764509023732,7.18742323,139.14,139.07,16.308864]
[1764509023922,0.72,139.14,139.07,16.308864]
[1764509024317,0.72,139.14,139.09,7.18958947]
[1764509024520,7.18646578,139.16,139.1,19.568864]
[1764509025214,0.72,139.15,139.1,19.568864]
[1764509025533,0.72,139.15,139.11,7.18855581]
[1764509026149,7.18646578,139.16,139.11,7.18855581]
[1764509026356,7.90646578,139.16,139.11,7.18855581]
[1764509026631,0.72,139.15,139.11,7.18855581]
[1764509028239,7.90680198,139.15,139.1,7.18894308]
[1764509028609,0.72,139.14,139.1,7.18894308]
[1764509029236,0.72,139.14,139.09,25.16356315]
[1764509030338,0.72,139.14,139.09,7.18958947]
[1764509031321,36.20325488,139.21,139.09,7.18958947]
[1764509031322,0.72,139.16,139.09,7.18958947]
[1764509031524,0.72,139.16,139.09,25.16356315]
[1764509031721,0.72,139.17,139.1,8.80994492]
[1764509032063,0.72,139.17,139.06,17.96010062]
[1764509032333,0.72,139.17,139.08,8.80994492]
[1764509032934,0.72,139.17,139.07,16.308864]
[1764509033342,0.72,139.17,139.08,41.47423644]
[1764509033343,7.18597298,139.16,139.08,41.47423644]
[1764509033532,25.15090543,139.16,139.08,16.308864]
[1764509033728,0.72,139.15,139.07,7.19057918]
[1764509034032,0.72,139.15,139.08,16.308864]
[1764509034916,0.72,139.15,139.1,16.308864]
[1764509035237,0.72,139.15,139.1,19.568864]
[1764509035424,0.72,139.15,139.11,7.18855581]
[1764509035624,7.90657013,139.15,139.11,7.18855581]
[1764509035811,7.90657013,139.15,139.1,3.26]
[1764509036012,3.98,139.14,138.94,33.27801127]
[1764509036217,3.96,139.14,139.02,16.308864]
[1764509036416,0.72,139.13,139.04,16.308864]
[1764509036638,0.72,139.13,139.03,3.26]
[1764509037221,0.72,139.13,139.04,16.308864]
[1764509037427,7.1880391,139.12,139.05,7.19165767]
[1764509037847,0.72,139.11,139.05,7.19165767]
[1764509038142,0.72,139.13,139.05,25.17080186]
[1764509038348,0.72,139.11,139.04,23.50095183]
[1764509039242,0.72,139.11,139.04,41.48138911]
[1764509040323,17.97268152,139.1,139.02,7.19320961]
[1764509040743,0.72,139.09,139.02,25.17623363]
[1764509041759,7.91010187,139.09,139.02,25.17623363]
[1764509042138,0.72,139.08,139.02,25.17623363]
[1764509042349,0.72,139.08,139.0,3.24]
[1764509042350,0.72,139.08,138.95,7.32969613]
[1764509042546,3.24,139.07,138.93,10.43786943]
[1764509042747,3.24,139.07,138.96,16.308864]
[1764509043035,1.00432314,139.06,138.93,28.432543]
[1764509043245,1.00432314,139.06,138.94,16.308864]
[1764509043555,25.17261219,139.04,138.95,7.19683339]
[1764509043756,3.96,139.03,138.95,7.19683339]
[1764509044141,0.72,139.02,138.95,7.19683339]
[1764509044719,7.19372706,139.01,138.95,7.19683339]
[1764509045355,0.72,139.0,138.95,7.19683339]
[1764509046123,0.72,139.0,138.94,62.8]
[1764509046449,0.72,139.0,138.94,69.99716342]
[1764509046750,7.19476221,138.99,138.94,62.8]
[1764509047091,7.19476221,138.99,138.9,80.79735043]
[1764509047223,0.72,138.98,138.9,80.79735043]
[1764509047655,0.72,138.98,138.89,7.1999424]
[1764509047825,3.24,138.98,138.89,23.5088064]
[1764509048026,25.18166774,138.99,138.9,0.71]
[1764509048760,25.18166774,138.99,138.91,23.50776976]
[1764509049263,25.18166774,138.99,138.91,24.21776976]
[1764509049762,7.19579765,138.97,138.91,7.90890576]
[1764509049930,7.19579765,138.97,138.88,0.71]
[1764509050134,0.72,138.96,138.88,0.71]
[1764509050434,0.72,138.96,138.9,16.308864]
[1764509050622,0.72,138.96,138.9,19.548864]
[1764509050834,0.72,138.96,138.9,20.258864]
[1764509051273,0.72,138.96,138.9,19.548864]
[1764509051449,7.91542019,138.98,138.91,0.71]
[1764509051647,0.72,138.98,138.91,17.018864]
[1764509051869,3.24,139.02,138.92,25.19435646]
[1764509052167,0.72,139.0,138.92,25.90435646]
[1764509052365,0.72,139.0,138.93,0.71]
[1764509052756,7.19476221,138.99,138.94,10.43734813]
[1764509053263,7.91476221,138.99,138.94,11.14734813]
[1764509053470,0.72,138.99,138.94,29.14072656]
[1764509053668,7.19413501,139.01,138.95,0.71]
[1764509053873,4.25603263,139.03,138.95,0.71]
[1764509054041,0.72,139.07,138.99,16.308864]
[1764509054042,5.04672841,139.07,138.99,16.308864]
[1764509054240,0.72,139.07,139.0,3.24]
[1764509054457,0.72,139.07,139.0,3.95]
[1764509054660,0.72,139.06,139.0,3.95]
[1764509054878,0.72,139.06,139.01,7.19372706]
[1764509055887,0.72,139.11,139.02,17.018864]
[1764509056050,5.12771752,139.1,139.02,17.018864]
[1764509056374,0.72,139.1,139.03,0.71]
[1764509056679,0.72,139.09,139.03,0.71]
[1764509057052,0.72,139.09,139.04,7.19217491]
[1764509057470,5.12771752,139.09,139.04,7.90217491]
[1764509057669,0.72,139.09,139.04,7.19217491]
[1764509057874,0.72,139.08,139.04,7.19217491]
[1764509058076,0.72,139.11,139.05,3.97]
[1764509058280,7.18794681,139.13,139.06,0.71]
[1764509058281,4.45423932,139.12,139.06,0.71]
[1764509058451,0.72,139.13,139.06,0.71]
[1764509058645,0.72,139.13,139.05,19.568864]
[1764509058868,0.72,139.13,139.06,0.71]
[1764509059172,7.90764923,139.13,139.06,7.19114051]
[1764509059554,0.72,139.12,139.06,7.19114051]
[1764509059756,5.17677502,139.12,139.06,7.19114051]
[1764509059944,0.72,139.12,139.06,7.19114051]
[1764509060252,4.45677502,139.13,139.09,16.308864]
[1764509060451,36.02211868,139.2,139.09,16.308864]
[1764509060452,0.72,139.16,139.09,19.588864]
[1764509060778,4.50183458,139.18,139.09,19.588864]
[1764509060976,4.50183458,139.17,139.09,19.588864]
[1764509061276,7.18597298,139.16,139.1,7.1890726]
[1764509061577,7.90597298,139.16,139.1,7.1890726]
[1764509061755,0.72,139.15,139.1,7.1890726]
[1764509061959,0.72,139.15,139.09,26.77843222]
[1764509063165,7.90682778,139.15,139.09,26.77843222]
[1764509063359,7.90682778,139.15,139.09,10.46926137]
[1764509063672,0.71,139.14,139.09,10.46926137]
[1764509064982,0.71,139.14,139.09,26.77812537]
[1764509065978,0.71,139.14,139.09,44.75209905]
[1764509066888,0.71,139.14,139.09,26.77812537]
[1764509068979,0.71,139.14,139.09,10.46926137]
[1764509070593,0.66,139.17,139.09,28.44323505]
[1764509071585,0.66,139.17,139.09,10.46926137]
[1764509071758,0.1,139.2,139.1,19.588864]
[1764509072088,0.66,139.19,139.12,16.308864]
[1764509072274,0.66,139.19,139.13,10.46752246]
[1764509073661,7.94397066,139.2,139.13,10.46752246]
[1764509074258,7.94397066,139.2,139.13,3.28]
[1764509074259,7.2839449,139.2,139.13,3.28]
[1764509074468,7.2839449,139.2,139.14,3.26]
[1764509074469,0.66,139.19,139.14,3.26]
[1764509075680,0.66,139.19,139.14,19.568864]
[1764509076261,0.1,139.2,139.14,3.26]
[1764509076460,0.76,139.2,139.14,10.44683007]
[1764509077264,0.1,139.2,139.14,10.44683007]
[1764509077465,0.1,139.2,139.14,26.75569407]
[1764509077669,0.76,139.2,139.14,26.75569407]
[1764509078181,0.1,139.2,139.14,26.75569407]
[1764509078376,0.1,139.2,139.14,44.7232088]
[1764509081293,0.76,139.2,139.15,3.26]
[1764509082161,0.76,139.2,139.15,10.44606005]
[1764509082389,0.76,139.2,139.16,3.26]
[1764509082672,7.9441456,139.2,139.16,3.26]
[1764509083175,0.66,139.19,139.16,3.26]
[1764509083602,0.66,139.19,139.1,25.16175412]
[1764509083779,0.66,139.19,139.11,3.26]
[1764509084295,7.18494036,139.18,139.11,10.44848671]
[1764509084688,0.66,139.17,139.11,10.44848671]
[1764509085585,7.84571609,139.17,139.11,10.44848671]
[1764509085778,0.66,139.19,139.11,28.41987625]
[1764509087308,7.8446216,139.19,139.11,28.41987625]
[1764509087500,0.1,139.2,139.14,16.308864]
[1764509087805,0.76,139.2,139.15,3.26]
[1764509089003,0.76,139.2,139.16,7.18597298]
[1764509090386,0.76,139.2,139.15,10.44636258]
[1764509091101,7.94412213,139.2,139.15,3.26]
[1764509091278,7.94412213,139.2,139.12,3.26]
[1764509091478,0.66,139.19,139.01,37.96775853]
[1764509091692,0.66,139.19,139.02,3.26]
[1764509092207,0.66,139.19,139.07,16.308864]
[1764509092391,0.66,139.19,139.08,19.568864]
[1764509092701,7.84466233,139.19,139.08,19.568864]
[1764509093087,0.66,139.18,139.08,19.568864]
[1764509094081,7.18545663,139.17,139.09,7.18958947]
[1764509094282,12.4681019,139.18,139.09,7.18958947]
[1764509094605,0.66,139.17,139.09,25.16356315]
[1764509096191,5.28307879,139.17,139.09,25.16356315]
[1764509096384,0.66,139.17,139.09,7.18958947]
[1764509096611,5.33307879,139.16,139.06,16.308864]
[1764509096815,4.62307879,139.15,139.07,3.26]
[1764509097112,4.62307879,139.14,139.07,3.26]
[1764509097317,4.62307879,139.13,139.07,3.26]
[1764509097618,0.71,139.13,139.07,3.26]
[1764509097791,5.29699306,139.12,139.07,3.26]
[1764509098113,0.71,139.12,139.05,34.28800819]
[1764509098314,0.71,139.11,139.05,25.1707569]
[1764509099514,0.71,139.11,139.05,7.19161271]
[1764509099692,0.71,139.11,139.06,3.24]
[1764509100197,7.89884175,139.11,139.06,3.24]
[1764509100398,0.71,139.1,139.06,3.24]
[1764509101388,0.71,139.12,139.06,10.43095698]
[1764509101612,17.96632625,139.15,139.06,10.43095698]
[1764509101613,7.18700589,139.14,139.06,10.43095698]
[1764509101817,4.63346043,139.13,139.06,10.43095698]
[1764509102016,0.71,139.13,139.06,10.43095698]
[1764509102202,4.63572279,139.12,139.06,10.43095698]
[1764509102394,0.71,139.17,139.07,16.308864]
[1764509102594,4.64166181,139.16,139.1,16.308864]
[1764509102811,0.71,139.17,139.11,3.24]
[1764509103011,4.70311264,139.16,139.11,3.24]
[1764509103212,4.69383506,139.15,139.1,19.548864]
[1764509103492,0.71,139.14,139.1,19.548864]
[1764509103913,0.71,139.14,139.1,3.24]
[1764509104399,0.71,139.14,139.1,10.42888967]
[1764509105108,0.71,139.16,139.1,10.42888967]
[1764509106519,0.71,139.16,139.1,28.40157119]
[1764509107716,7.89600631,139.16,139.1,10.42888967]
[1764509108038,7.89600631,139.16,139.08,7.1897077]
[1764509108039,4.53235077,139.15,139.08,7.1897077]
[1764509108317,4.53235077,139.14,139.07,7.19049605]
[1764509108515,4.53235077,139.13,139.07,7.19049605]
[1764509108692,7.8976492,139.13,139.07,7.19049605]
[1764509108896,0.71,139.12,139.07,7.19049605]
[1764509109107,0.71,139.12,139.06,3.24]
[1764509109315,4.44333341,139.11,139.03,7.19235768]
[1764509109506,0.71,139.12,139.03,10.43235768]
[1764509109713,0.71,139.12,138.95,33.91524145]
[1764509109714,8.80994492,139.1,138.95,33.91524145]
[1764509110002,8.80994492,139.08,138.96,3.24]
[1764509110207,8.80994492,139.06,138.96,3.24]
[1764509110403,4.434461,139.05,138.96,3.24]
[1764509110606,4.434461,139.04,138.96,3.24]
[1764509110818,11.62715322,139.03,138.96,3.24]
[1764509111034,5.144461,139.03,138.96,10.43611885]
[1764509111210,0.71,139.02,138.96,10.43611885]
[1764509112335,0.71,139.02,138.97,16.308864]
[1764509113633,0.71,139.05,138.99,16.308864]
[1764509113816,0.71,139.05,139.0,3.24]
[1764509114018,0.71,139.05,139.01,7.19372706]
[1764509114925,16.308864,139.12,139.01,7.19372706]
[1764509114926,0.68,139.07,139.01,7.19372706]
[1764509115830,0.68,139.09,139.01,25.17804473]
[1764509117324,7.86967249,139.09,139.01,7.19372706]
[1764509117512,25.84364617,139.09,139.0,10.43409158]
[1764509117831,0.68,139.08,139.0,10.43409158]
[1764509118010,0.68,139.08,139.0,3.24]
[1764509118206,0.68,139.08,138.96,0.28432314]
[1764509118207,25.16718198,139.07,138.98,3.24]
[1764509118737,0.68,139.06,138.98,3.24]
[1764509119828,7.19165767,139.05,138.98,3.24]
[1764509120233,0.68,139.04,138.96,7.19616133]
[1764509120433,0.68,139.04,138.94,10.43693949]
[1764509121323,25.17442278,139.03,138.94,10.43693949]
[1764509121720,0.68,139.02,138.94,10.43693949]
[1764509122612,7.19372706,139.01,138.94,10.43693949]
[1764509123134,0.68,139.0,138.94,10.43693949]
[1764509123341,0.68,139.0,138.93,7.1978605]
[1764509123517,0.68,139.0,138.91,18.19701911]
[1764509123518,0.68,139.0,138.92,10.43837219]
[1764509124337,0.68,139.0,138.92,3.24]
[1764509124338,3.92,139.0,138.92,3.24]
[1764509124531,25.18166774,138.99,138.91,7.39885819]
[1764509124734,25.86166774,138.99,138.91,7.39885819]
[1764509124923,0.68,138.98,138.91,7.39885819]
[1764509127316,7.87528339,138.98,138.91,7.39885819]
[1764509127834,0.7,138.97,138.91,7.39885819]
[1764509128337,0.7,138.97,138.91,25.3961226]
[1764509129662,7.89589724,138.97,138.91,25.3961226]
[1764509129822,0.7,138.96,138.91,25.3961226]
[1764509130016,0.7,138.96,138.91,0.2]
[1764509131516,0.7,138.96,138.91,7.39865757]
[1764509131716,0.7,138.98,138.91,25.39592198]
[1764509132155,0.7,139.02,138.94,16.308864]
[1764509132334,0.7,139.01,138.95,3.24]
[1764509133322,0.7,139.01,138.96,7.19631548]
[1764509134441,7.89275178,139.03,138.96,7.19631548]
[1764509134629,0.7,139.02,138.96,25.18710419]
[1764509136035,7.89327133,139.02,138.96,25.18710419]
[1764509136441,0.7,139.01,138.96,25.18710419]
[1764509138157,0.7,139.01,138.96,7.19631548]
[1764509139472,0.7,139.04,138.97,16.308864]
[1764509139657,0.7,139.04,138.99,16.308864]
[1764509139852,0.7,139.04,139.0,3.24]
[1764509140173,0.7,139.04,138.96,25.18710419]
[1764509140365,0.7,139.04,138.98,3.24]
[1764509141138,7.89228286,139.04,138.94,14.38763358]
[1764509141336,7.89228286,139.04,138.94,7.19687201]
[1764509141553,0.7,139.03,138.94,7.19687201]
[1764509141760,0.7,139.03,138.92,3.24]
[1764509141967,0.7,139.03,138.93,7.19786943]
[1764509142939,0.7,139.03,138.94,16.308864]
[1764509143145,7.19320961,139.02,138.95,7.19683339]
[1764509143346,7.19320961,139.02,138.96,3.24]
[1764509143545,0.7,139.01,138.96,3.24]
[1764509144143,7.89407341,139.01,138.94,16.308864]
[1764509144440,7.89407341,139.01,138.94,19.548864]
[1764509144672,0.7,139.0,138.94,3.24]
[1764509145549,0.7,139.0,138.93,7.19756015]
[1764509145951,7.19476221,138.99,138.93,7.19756015]
[1764509146367,0.7,138.98,138.92,10.43835803]
[1764509147460,7.19579765,138.97,138.92,10.43835803]
[1764509147964,0.7,138.96,138.91,0.2]
[1764509149457,7.19683339,138.95,138.91,0.2]
[1764509150046,0.7,138.94,138.91,0.2]
[1764509151474,7.89746682,138.94,138.91,0.2]
[1764509151644,0.7,138.94,138.91,0.2]
[1764509151841,0.7,138.97,138.91,0.2]
[1764509153070,0.7,138.97,138.92,16.308864]
[1764509153453,7.19631548,138.96,138.91,0.2]
[1764509153861,0.7,138.95,138.91,0.2]
[1764509155571,7.8972533,138.95,138.91,0.2]
[1764509155946,0.67,138.94,138.91,0.2]
[1764509157752,7.19587396,138.97,138.91,7.3988467]
[1764509157954,0.67,138.96,138.91,7.3988467]
[1764509159376,0.67,138.96,138.91,25.39611111]
[1764509159697,4.14925359,138.98,138.91,41.70497511]
[1764509159874,0.67,138.98,138.94,16.308864]
[1764509160060,0.67,138.98,138.94,19.528864]
[1764509161253,0.67,138.98,138.94,10.41691258]
[1764509161576,7.86432737,139.0,138.94,10.41691258]
[1764509162372,7.19432737,139.0,138.94,10.41691258]
[1764509162552,0.67,138.99,138.94,10.41691258]